[Event "Titled Tuesday Blitz May 24 Late 2022"]
[White "Wachinger, Nikolas"]
[Black "Keymer, Vincent"]
[WhiteFideId "12962791"]
[BlackFideId "12940690"]
[WhiteElo "2227"]
[BlackElo "2548"]
[Result "0-1"]
[Round "09"]
[TimeControl "180+1"]
[Date "2022.05.24"]
[WhiteClock "0:00:02"]
[BlackClock "0:00:09"]

1. d4 {[%clk 0:03:00]}  Nf6 {[%clk 0:02:58]} 2. Nf3 {[%clk 0:03:01]}  e6 {[%clk 0:02:59]} 3. Bf4 {[%clk 0:03:00]}  d5 {[%clk 0:02:59]} 4. e3 {[%clk 0:03:00]}  Bd6 {[%clk 0:02:59]} 5. Bg3 {[%clk 0:02:58]}  O-O {[%clk 0:02:59]} 6. c4 {[%clk 0:02:58]}  c5 {[%clk 0:02:57]} 7. Nc3 {[%clk 0:02:52]}  b6 {[%clk 0:02:40]} 8. Bh4 {[%clk 0:02:38]}  Be7 {[%clk 0:02:22]} 9. cxd5 {[%clk 0:02:28]}  exd5 {[%clk 0:02:11]} 10. dxc5 {[%clk 0:02:14]}  bxc5 {[%clk 0:02:10]} 11. Be2 {[%clk 0:02:14]}  Bb7 {[%clk 0:02:06]} 12. O-O {[%clk 0:02:11]}  Nbd7 {[%clk 0:02:07]} 13. Rc1 {[%clk 0:02:03]}  Rc8 {[%clk 0:02:04]} 14. Qb3 {[%clk 0:01:57]}  Qb6 {[%clk 0:02:02]} 15. Rfd1 {[%clk 0:01:51]}  h6 {[%clk 0:01:53]} 16. Qxb6 {[%clk 0:01:39]}  axb6 {[%clk 0:01:53]} 17. Bb5 {[%clk 0:01:37]}  Rfd8 {[%clk 0:01:47]} 18. Rd2 {[%clk 0:01:31]}  g5 {[%clk 0:01:29]} 19. Bg3 {[%clk 0:01:30]}  Nf8 {[%clk 0:01:27]} 20. Rcd1 {[%clk 0:01:23]}  Ne6 {[%clk 0:01:27]} 21. Be5 {[%clk 0:01:16]}  g4 {[%clk 0:00:45]} 22. Nh4 {[%clk 0:01:03]}  Ng7 {[%clk 0:00:33]} 23. g3 {[%clk 0:01:01]}  Kf8 {[%clk 0:00:19]} 24. Ng2 {[%clk 0:00:59]}  Ne6 {[%clk 0:00:18]} 25. Nf4 {[%clk 0:00:51]}  Ng5 {[%clk 0:00:16]} 26. Be2 {[%clk 0:00:47]}  Nfe4 {[%clk 0:00:14]} 27. Nxe4 {[%clk 0:00:40]}  Nxe4 {[%clk 0:00:15]} 28. Rc2 {[%clk 0:00:39]}  Bf6 {[%clk 0:00:15]} 29. Nd3 {[%clk 0:00:28]}  h5 {[%clk 0:00:15]} 30. Bxf6 {[%clk 0:00:21]}  Nxf6 {[%clk 0:00:16]} 31. Bf1 {[%clk 0:00:22]}  d4 {[%clk 0:00:14]} 32. exd4 {[%clk 0:00:19]}  Rxd4 {[%clk 0:00:15]} 33. Rcd2 {[%clk 0:00:15]}  Rcd8 {[%clk 0:00:15]} 34. b3 {[%clk 0:00:12]}  Ne4 {[%clk 0:00:09]} 35. Rc2 {[%clk 0:00:12]}  Ng5 {[%clk 0:00:09]} 36. Be2 {[%clk 0:00:08]}  Bf3 {[%clk 0:00:08]} 37. Kf1 {[%clk 0:00:03]}  Be4 {[%clk 0:00:08]} 38. Rcd2 {[%clk 0:00:03]}  Nf3 {[%clk 0:00:09]} 39. Bxf3 {[%clk 0:00:03]}  Bxf3 {[%clk 0:00:09]} 40. Ke1 {[%clk 0:00:02]}  Bxd1 {[%clk 0:00:09]} 0-1


[Site "https://www.chess.com"]

[Event "Titled Tuesday Blitz May 24 Late 2022"]
[White "Yaksin, Oleg"]
[Black "Keller, Peter"]
[WhiteFideId "24105880"]
[BlackFideId "1272105"]
[WhiteElo "2256"]
[BlackElo "2275"]
[Result "0-1"]
[Round "09"]
[TimeControl "180+1"]
[Date "2022.05.25"]
[WhiteClock "0:00:01"]
[BlackClock "0:00:10"]

1. d4 {[%clk 0:02:55]}  Nf6 {[%clk 0:02:59]} 2. c4 {[%clk 0:02:55]}  e6 {[%clk 0:02:59]} 3. g3 {[%clk 0:02:55]}  d5 {[%clk 0:02:59]} 4. Nf3 {[%clk 0:02:55]}  Be7 {[%clk 0:02:59]} 5. Bg2 {[%clk 0:02:55]}  O-O {[%clk 0:02:59]} 6. O-O {[%clk 0:02:56]}  dxc4 {[%clk 0:03:00]} 7. Qc2 {[%clk 0:02:56]}  a6 {[%clk 0:02:59]} 8. a4 {[%clk 0:02:56]}  Bd7 {[%clk 0:02:51]} 9. Rd1 {[%clk 0:02:56]}  Bc6 {[%clk 0:02:48]} 10. Nc3 {[%clk 0:02:56]}  Bxf3 {[%clk 0:02:47]} 11. Bxf3 {[%clk 0:02:57]}  Nc6 {[%clk 0:02:46]} 12. Bxc6 {[%clk 0:02:57]}  bxc6 {[%clk 0:02:47]} 13. Bg5 {[%clk 0:02:57]}  a5 {[%clk 0:02:32]} 14. Bxf6 {[%clk 0:02:50]}  Bxf6 {[%clk 0:02:33]} 15. Ne4 {[%clk 0:02:50]}  Qd5 {[%clk 0:02:31]} 16. Rac1 {[%clk 0:02:31]}  Rab8 {[%clk 0:02:29]} 17. Nxf6+ {[%clk 0:02:00]}  gxf6 {[%clk 0:02:29]} 18. e4 {[%clk 0:01:59]}  Qh5 {[%clk 0:02:20]} 19. Qxc4 {[%clk 0:01:56]}  Rxb2 {[%clk 0:02:19]} 20. Qxc6 {[%clk 0:01:55]}  Qf3 {[%clk 0:02:12]} 21. Rf1 {[%clk 0:01:51]}  f5 {[%clk 0:01:43]} 22. exf5 {[%clk 0:01:38]}  Qxf5 {[%clk 0:01:38]} 23. Qxc7 {[%clk 0:01:37]}  Rfb8 {[%clk 0:01:37]} 24. Rc5 {[%clk 0:01:26]}  Qf3 {[%clk 0:01:29]} 25. Rc3 {[%clk 0:00:37]}  Qd5 {[%clk 0:01:18]} 26. Rc5 {[%clk 0:00:27]}  Qf3 {[%clk 0:01:17]} 27. Rg5+ {[%clk 0:00:18]}  Kh8 {[%clk 0:01:16]} 28. Qc1 {[%clk 0:00:18]}  R2b4 {[%clk 0:00:35]} 29. Rxa5 {[%clk 0:00:15]}  Rxd4 {[%clk 0:00:29]} 30. Qc7 {[%clk 0:00:10]}  Rbd8 {[%clk 0:00:25]} 31. Qe5+ {[%clk 0:00:09]}  f6 {[%clk 0:00:20]} 32. Qe3 {[%clk 0:00:04]}  Qg4 {[%clk 0:00:11]} 33. Ra7 {[%clk 0:00:01]}  Rd1 {[%clk 0:00:10]} 0-1


[Site "https://www.chess.com"]

[Event "Titled Tuesday Blitz May 24 Late 2022"]
[White "Andreikin, Dmitry"]
[Black "Romanchuk, Viktor"]
[WhiteFideId "4158814"]
[BlackFideId "14109271"]
[WhiteElo "2736"]
[BlackElo "2242"]
[Result "1/2-1/2"]
[Round "10"]
[TimeControl "180+1"]
[Date "2022.05.24"]
[WhiteClock "0:02:48"]
[BlackClock "0:01:56"]

1. c4 {[%clk 0:03:00]}  c6 {[%clk 0:02:59]} 2. Nc3 {[%clk 0:03:00]}  d5 {[%clk 0:02:59]} 3. e3 {[%clk 0:02:59]}  Nf6 {[%clk 0:02:59]} 4. Nf3 {[%clk 0:02:59]}  e6 {[%clk 0:03:00]} 5. g3 {[%clk 0:02:58]}  Nbd7 {[%clk 0:02:59]} 6. b3 {[%clk 0:02:58]}  Bd6 {[%clk 0:02:59]} 7. Bg2 {[%clk 0:02:57]}  Qe7 {[%clk 0:02:59]} 8. d4 {[%clk 0:02:57]}  O-O {[%clk 0:02:51]} 9. O-O {[%clk 0:02:56]}  b6 {[%clk 0:02:48]} 10. Bb2 {[%clk 0:02:53]}  Bb7 {[%clk 0:02:48]} 11. Qe2 {[%clk 0:02:52]}  Rac8 {[%clk 0:02:45]} 12. e4 {[%clk 0:02:52]}  dxe4 {[%clk 0:02:45]} 13. Nxe4 {[%clk 0:02:53]}  Nxe4 {[%clk 0:02:44]} 14. Qxe4 {[%clk 0:02:54]}  Ba3 {[%clk 0:02:44]} 15. Bxa3 {[%clk 0:02:52]}  Qxa3 {[%clk 0:02:43]} 16. Ne5 {[%clk 0:02:53]}  Nxe5 {[%clk 0:02:42]} 17. dxe5 {[%clk 0:02:54]}  Rfd8 {[%clk 0:02:40]} 18. h4 {[%clk 0:02:54]}  Ba8 {[%clk 0:02:37]} 19. Rfd1 {[%clk 0:02:51]}  c5 {[%clk 0:02:37]} 20. Qe2 {[%clk 0:02:51]}  Bxg2 {[%clk 0:02:33]} 21. Kxg2 {[%clk 0:02:52]}  Qa6 {[%clk 0:02:33]} 22. Qf3 {[%clk 0:02:48]}  Rxd1 {[%clk 0:02:19]} 23. Rxd1 {[%clk 0:02:49]}  Qxa2 {[%clk 0:02:18]} 24. Rd7 {[%clk 0:02:49]}  Rf8 {[%clk 0:02:17]} 25. h5 {[%clk 0:02:49]}  h6 {[%clk 0:02:17]} 26. g4 {[%clk 0:02:49]}  a5 {[%clk 0:02:09]} 27. Qd3 {[%clk 0:02:48]}  a4 {[%clk 0:02:00]} 28. Rd8 {[%clk 0:02:46]}  Rxd8 {[%clk 0:01:56]} 29. Qxd8+ {[%clk 0:02:46]}  Kh7 {[%clk 0:01:56]} 30. Qd3+ {[%clk 0:02:47]}  Kg8 {[%clk 0:01:56]} 31. Qd8+ {[%clk 0:02:48]}  Kh7 {[%clk 0:01:56]} 32. Qd3+ {[%clk 0:02:48]}  Kg8 {[%clk 0:01:56]} 33. Qd8+ {[%clk 0:02:48]} 1/2-1/2


[Site "https://www.chess.com"]

[Event "Titled Tuesday Blitz May 24 Late 2022"]
[White "Bernal Moro, Luis Javier"]
[Black "Shapiro, Daniel"]
[WhiteFideId "2200236"]
[BlackFideId "2001780"]
[WhiteElo "2373"]
[BlackElo "2285"]
[Result "1-0"]
[Round "10"]
[TimeControl "180+1"]
[Date "2022.05.25"]
[WhiteClock "0:00:27"]
[BlackClock "0:00:01"]

1. c4 {[%clk 0:03:00]}  e5 {[%clk 0:02:59]} 2. Nc3 {[%clk 0:03:00]}  Nf6 {[%clk 0:02:59]} 3. Nf3 {[%clk 0:03:00]}  Nc6 {[%clk 0:02:57]} 4. e3 {[%clk 0:03:00]}  g6 {[%clk 0:02:47]} 5. d4 {[%clk 0:02:58]}  exd4 {[%clk 0:02:45]} 6. exd4 {[%clk 0:02:58]}  d5 {[%clk 0:02:44]} 7. Bg5 {[%clk 0:02:49]}  dxc4 {[%clk 0:02:29]} 8. d5 {[%clk 0:02:46]}  Nb4 {[%clk 0:00:57]} 9. Bxc4 {[%clk 0:01:51]}  Qe7+ {[%clk 0:00:50]} 10. Kf1 {[%clk 0:01:45]}  Bg7 {[%clk 0:00:48]} 11. Qb3 {[%clk 0:01:03]}  O-O {[%clk 0:00:43]} 12. Re1 {[%clk 0:01:02]}  Qc5 {[%clk 0:00:35]} 13. Bxf6 {[%clk 0:01:01]}  Bxf6 {[%clk 0:00:31]} 14. Ne4 {[%clk 0:01:01]}  Qe7 {[%clk 0:00:23]} 15. Nxf6+ {[%clk 0:01:00]}  Qxf6 {[%clk 0:00:24]} 16. Qxb4 {[%clk 0:01:01]}  a5 {[%clk 0:00:24]} 17. Qc3 {[%clk 0:01:00]}  Qd6 {[%clk 0:00:24]} 18. h4 {[%clk 0:00:58]}  Bd7 {[%clk 0:00:25]} 19. h5 {[%clk 0:00:57]}  b5 {[%clk 0:00:25]} 20. Bb3 {[%clk 0:00:54]}  b4 {[%clk 0:00:24]} 21. Qe5 {[%clk 0:00:51]}  Bb5+ {[%clk 0:00:21]} 22. Kg1 {[%clk 0:00:48]}  Qc5 {[%clk 0:00:21]} 23. Qd4 {[%clk 0:00:46]}  Qxd4 {[%clk 0:00:20]} 24. Nxd4 {[%clk 0:00:45]}  Bd7 {[%clk 0:00:21]} 25. hxg6 {[%clk 0:00:43]}  hxg6 {[%clk 0:00:21]} 26. Bc4 {[%clk 0:00:41]}  Rfd8 {[%clk 0:00:18]} 27. Rh4 {[%clk 0:00:39]}  Kg7 {[%clk 0:00:18]} 28. Rhe4 {[%clk 0:00:39]}  a4 {[%clk 0:00:13]} 29. Nc6 {[%clk 0:00:37]}  Rh8 {[%clk 0:00:09]} 30. Nxb4 {[%clk 0:00:33]}  Rh5 {[%clk 0:00:08]} 31. Be2 {[%clk 0:00:31]}  Rg5 {[%clk 0:00:06]} 32. Bf3 {[%clk 0:00:30]}  Rh8 {[%clk 0:00:04]} 33. g3 {[%clk 0:00:30]}  Bf5 {[%clk 0:00:03]} 34. R4e3 {[%clk 0:00:27]}  Bd7 {[%clk 0:00:01]} 35. a3 {[%clk 0:00:27]}  Bb5 {[%clk 0:00:01]} 36. Bg2 {[%clk 0:00:27]} 1-0


[Site "https://www.chess.com"]

[Event "Titled Tuesday Blitz May 24 Late 2022"]
[White "Boder, Jan"]
[Black "Vega Gutierrez, Sabrina"]
[WhiteFideId "16243226"]
[BlackFideId "2219026"]
[WhiteElo "2064"]
[BlackElo "2286"]
[Result "1-0"]
[Round "10"]
[TimeControl "180+1"]
[Date "2022.05.25"]
[WhiteClock "0:00:15"]
[BlackClock "0:00:01"]

1. e4 {[%clk 0:03:00]}  c5 {[%clk 0:02:59]} 2. Nf3 {[%clk 0:03:01]}  e6 {[%clk 0:03:00]} 3. d4 {[%clk 0:03:00]}  cxd4 {[%clk 0:03:01]} 4. Nxd4 {[%clk 0:03:01]}  Nf6 {[%clk 0:03:00]} 5. Nc3 {[%clk 0:03:01]}  d6 {[%clk 0:02:59]} 6. Bg5 {[%clk 0:02:59]}  Be7 {[%clk 0:02:56]} 7. Qd2 {[%clk 0:02:56]}  h6 {[%clk 0:02:47]} 8. Bh4 {[%clk 0:02:51]}  Nc6 {[%clk 0:02:00]} 9. O-O-O {[%clk 0:02:44]}  a6 {[%clk 0:01:59]} 10. Nxc6 {[%clk 0:02:39]}  bxc6 {[%clk 0:01:59]} 11. e5 {[%clk 0:02:40]}  dxe5 {[%clk 0:01:51]} 12. Qxd8+ {[%clk 0:02:32]}  Bxd8 {[%clk 0:01:51]} 13. Ne4 {[%clk 0:02:32]}  O-O {[%clk 0:01:27]} 14. Nd6 {[%clk 0:02:05]}  Nd5 {[%clk 0:01:17]} 15. Bg3 {[%clk 0:02:00]}  Bg5+ {[%clk 0:01:04]} 16. Kb1 {[%clk 0:01:59]}  Rd8 {[%clk 0:00:45]} 17. Ne4 {[%clk 0:01:23]}  Nf4 {[%clk 0:00:37]} 18. Bc4 {[%clk 0:01:05]}  Bb7 {[%clk 0:00:15]} 19. Nc5 {[%clk 0:00:59]}  Rab8 {[%clk 0:00:09]} 20. Nd7 {[%clk 0:00:51]}  Ra8 {[%clk 0:00:09]} 21. Nxe5 {[%clk 0:00:45]}  Nd5 {[%clk 0:00:05]} 22. h4 {[%clk 0:00:40]}  Bf6 {[%clk 0:00:06]} 23. Nd3 {[%clk 0:00:34]}  c5 {[%clk 0:00:06]} 24. Nxc5 {[%clk 0:00:33]}  Bc6 {[%clk 0:00:07]} 25. Ne4 {[%clk 0:00:30]}  Be7 {[%clk 0:00:06]} 26. f3 {[%clk 0:00:27]}  Ra7 {[%clk 0:00:06]} 27. Bxd5 {[%clk 0:00:27]}  Bxd5 {[%clk 0:00:06]} 28. Nc3 {[%clk 0:00:28]}  Rad7 {[%clk 0:00:03]} 29. Rd3 {[%clk 0:00:27]}  Bc4 {[%clk 0:00:02]} 30. Rxd7 {[%clk 0:00:24]}  Rxd7 {[%clk 0:00:03]} 31. Rd1 {[%clk 0:00:16]}  Rxd1+ {[%clk 0:00:03]} 32. Nxd1 {[%clk 0:00:17]}  h5 {[%clk 0:00:01]} 33. Bf2 {[%clk 0:00:15]} 1-0


[Site "https://www.chess.com"]

[Event "Titled Tuesday Blitz May 24 Late 2022"]
[White "Burke, Paul"]
[Black "Haas, Michael"]
[WhiteFideId "2605767"]
[BlackFideId "1629514"]
[WhiteElo "1872"]
[BlackElo "1982"]
[Result "1-0"]
[Round "10"]
[TimeControl "180+1"]
[Date "2022.05.25"]
[WhiteClock "0:00:06"]
[BlackClock "0:00:03"]

1. e4 {[%clk 0:03:00]}  e6 {[%clk 0:02:59]} 2. d4 {[%clk 0:03:00]}  d5 {[%clk 0:02:58]} 3. e5 {[%clk 0:03:00]}  c5 {[%clk 0:02:45]} 4. Qg4 {[%clk 0:02:57]}  cxd4 {[%clk 0:02:40]} 5. Nf3 {[%clk 0:02:57]}  Nc6 {[%clk 0:02:36]} 6. Bd3 {[%clk 0:02:57]}  Nge7 {[%clk 0:02:25]} 7. O-O {[%clk 0:02:56]}  Ng6 {[%clk 0:02:23]} 8. Qg3 {[%clk 0:02:55]}  Qc7 {[%clk 0:02:20]} 9. Re1 {[%clk 0:02:55]}  Be7 {[%clk 0:02:15]} 10. h4 {[%clk 0:02:55]}  Rg8 {[%clk 0:01:56]} 11. h5 {[%clk 0:02:47]}  Nf8 {[%clk 0:01:56]} 12. c3 {[%clk 0:02:36]}  dxc3 {[%clk 0:01:54]} 13. Nxc3 {[%clk 0:02:35]}  a6 {[%clk 0:01:54]} 14. Bf4 {[%clk 0:02:27]}  Bd7 {[%clk 0:01:53]} 15. Rac1 {[%clk 0:02:25]}  Qa5 {[%clk 0:01:40]} 16. a3 {[%clk 0:02:19]}  Qb6 {[%clk 0:01:32]} 17. b4 {[%clk 0:02:15]}  Nd4 {[%clk 0:01:31]} 18. Nxd4 {[%clk 0:02:01]}  Qxd4 {[%clk 0:01:32]} 19. Ne2 {[%clk 0:02:00]}  Qb6 {[%clk 0:01:25]} 20. Be3 {[%clk 0:01:40]}  Qd8 {[%clk 0:01:21]} 21. Bc5 {[%clk 0:01:23]}  Bc6 {[%clk 0:00:59]} 22. Nd4 {[%clk 0:01:13]}  Rc8 {[%clk 0:00:53]} 23. Nxc6 {[%clk 0:01:07]}  Rxc6 {[%clk 0:00:54]} 24. Bxe7 {[%clk 0:01:05]}  Rxc1 {[%clk 0:00:45]} 25. Rxc1 {[%clk 0:01:00]}  Qxe7 {[%clk 0:00:41]} 26. Qe3 {[%clk 0:00:56]}  Qd8 {[%clk 0:00:28]} 27. Qa7 {[%clk 0:00:44]}  Nd7 {[%clk 0:00:12]} 28. Qxb7 {[%clk 0:00:36]}  Ke7 {[%clk 0:00:10]} 29. Rc7 {[%clk 0:00:31]}  f6 {[%clk 0:00:07]} 30. exf6+ {[%clk 0:00:20]}  gxf6 {[%clk 0:00:08]} 31. Bxa6 {[%clk 0:00:18]}  Rg7 {[%clk 0:00:06]} 32. Qc6 {[%clk 0:00:11]}  Kf8 {[%clk 0:00:02]} 33. Rc8 {[%clk 0:00:10]}  Ke8 {[%clk 0:00:02]} 34. Rxd8+ {[%clk 0:00:08]}  Kxd8 {[%clk 0:00:03]} 35. Bb5 {[%clk 0:00:06]} 1-0


[Site "https://www.chess.com"]

[Event "Titled Tuesday Blitz May 24 Late 2022"]
[White "Carrasco Miranda, Andres"]
[Black "Huber, Benedikt"]
[WhiteFideId "3405990"]
[BlackFideId "12923583"]
[WhiteElo "2177"]
[BlackElo "1979"]
[Result "1-0"]
[Round "10"]
[TimeControl "180+1"]
[Date "2022.05.25"]
[WhiteClock "0:01:08"]
[BlackClock "0:01:32"]

1. d4 {[%clk 0:03:00]}  f5 {[%clk 0:02:57]} 2. Nf3 {[%clk 0:03:00]}  Nf6 {[%clk 0:02:56]} 3. g3 {[%clk 0:03:00]}  e6 {[%clk 0:02:56]} 4. Bg2 {[%clk 0:03:01]}  Be7 {[%clk 0:02:54]} 5. O-O {[%clk 0:03:01]}  O-O {[%clk 0:02:54]} 6. c4 {[%clk 0:03:01]}  d6 {[%clk 0:02:55]} 7. Nc3 {[%clk 0:03:01]}  Ne4 {[%clk 0:02:55]} 8. Qc2 {[%clk 0:03:01]}  Nxc3 {[%clk 0:02:54]} 9. Qxc3 {[%clk 0:03:02]}  Bf6 {[%clk 0:02:55]} 10. b3 {[%clk 0:02:56]}  Nc6 {[%clk 0:02:54]} 11. Bb2 {[%clk 0:02:54]}  e5 {[%clk 0:02:54]} 12. dxe5 {[%clk 0:02:55]}  dxe5 {[%clk 0:02:55]} 13. Rad1 {[%clk 0:02:53]}  Qe7 {[%clk 0:02:54]} 14. Qc1 {[%clk 0:02:43]}  Be6 {[%clk 0:02:45]} 15. Rfe1 {[%clk 0:02:37]}  e4 {[%clk 0:02:44]} 16. Bxf6 {[%clk 0:02:34]}  Qxf6 {[%clk 0:02:45]} 17. Ng5 {[%clk 0:02:30]}  a5 {[%clk 0:02:39]} 18. Qf4 {[%clk 0:02:17]}  a4 {[%clk 0:02:26]} 19. Nxe6 {[%clk 0:02:17]}  Qxe6 {[%clk 0:02:26]} 20. Qxc7 {[%clk 0:02:13]}  Rf7 {[%clk 0:02:26]} 21. Qd6 {[%clk 0:02:12]}  Qxd6 {[%clk 0:02:23]} 22. Rxd6 {[%clk 0:02:13]}  axb3 {[%clk 0:02:23]} 23. axb3 {[%clk 0:02:14]}  Ra2 {[%clk 0:02:22]} 24. f3 {[%clk 0:02:09]}  Re7 {[%clk 0:02:18]} 25. fxe4 {[%clk 0:02:07]}  fxe4 {[%clk 0:02:19]} 26. Bh3 {[%clk 0:02:03]}  Rb2 {[%clk 0:02:13]} 27. Be6+ {[%clk 0:01:58]}  Kf8 {[%clk 0:02:13]} 28. c5 {[%clk 0:01:51]}  e3 {[%clk 0:01:57]} 29. Bd5 {[%clk 0:01:37]}  Ke8 {[%clk 0:01:53]} 30. Ra1 {[%clk 0:01:31]}  Re5 {[%clk 0:01:45]} 31. Bxc6+ {[%clk 0:01:12]}  bxc6 {[%clk 0:01:43]} 32. Rxc6 {[%clk 0:01:13]}  Rxe2 {[%clk 0:01:34]} 33. Rc7 {[%clk 0:01:11]}  Kd8 {[%clk 0:01:32]} 34. Rxg7 {[%clk 0:01:09]}  Re7 {[%clk 0:01:31]} 35. Ra8+ {[%clk 0:01:08]}  Kd7 {[%clk 0:01:32]} 36. Ra7+ {[%clk 0:01:08]} 1-0


[Site "https://www.chess.com"]

[Event "Titled Tuesday Blitz May 24 Late 2022"]
[White "Clawitter, Craig"]
[Black "Melikhov, Evgeny V."]
[WhiteFideId "2023105"]
[BlackFideId "4122046"]
[WhiteElo "2213"]
[BlackElo "1931"]
[Result "1-0"]
[Round "10"]
[TimeControl "180+1"]
[Date "2022.05.25"]
[WhiteClock "0:00:15"]
[BlackClock "0:00:42"]

1. e4 {[%clk 0:03:00]}  c5 {[%clk 0:02:59]} 2. Nf3 {[%clk 0:03:01]}  d6 {[%clk 0:02:59]} 3. d4 {[%clk 0:03:01]}  cxd4 {[%clk 0:03:00]} 4. Nxd4 {[%clk 0:03:02]}  Nf6 {[%clk 0:03:00]} 5. Nc3 {[%clk 0:03:03]}  a6 {[%clk 0:03:01]} 6. Be3 {[%clk 0:03:03]}  e5 {[%clk 0:03:01]} 7. Nb3 {[%clk 0:03:03]}  Be6 {[%clk 0:03:01]} 8. f3 {[%clk 0:03:04]}  Be7 {[%clk 0:03:01]} 9. Qd2 {[%clk 0:03:03]}  O-O {[%clk 0:03:01]} 10. O-O-O {[%clk 0:03:02]}  b5 {[%clk 0:03:01]} 11. g4 {[%clk 0:03:02]}  Nbd7 {[%clk 0:02:59]} 12. Rg1 {[%clk 0:03:02]}  Nb6 {[%clk 0:02:54]} 13. Na5 {[%clk 0:03:00]}  Qc7 {[%clk 0:02:51]} 14. g5 {[%clk 0:02:43]}  Nh5 {[%clk 0:02:50]} 15. Nd5 {[%clk 0:02:41]}  Nxd5 {[%clk 0:02:40]} 16. exd5 {[%clk 0:02:41]}  Bf5 {[%clk 0:02:40]} 17. Nc6 {[%clk 0:02:41]}  Rfc8 {[%clk 0:02:27]} 18. Kb1 {[%clk 0:02:24]}  Bf8 {[%clk 0:02:26]} 19. Rc1 {[%clk 0:02:10]}  Bd7 {[%clk 0:01:47]} 20. c4 {[%clk 0:02:10]}  Bxc6 {[%clk 0:01:43]} 21. cxb5 {[%clk 0:01:59]}  axb5 {[%clk 0:01:42]} 22. Rxc6 {[%clk 0:01:56]}  Qb7 {[%clk 0:01:34]} 23. Bd3 {[%clk 0:01:44]}  Ra4 {[%clk 0:01:18]} 24. Rgc1 {[%clk 0:01:12]}  Rca8 {[%clk 0:01:17]} 25. a3 {[%clk 0:01:13]}  b4 {[%clk 0:01:17]} 26. Rb6 {[%clk 0:00:57]}  Qxd5 {[%clk 0:01:04]} 27. Bxh7+ {[%clk 0:00:56]}  Kxh7 {[%clk 0:01:02]} 28. Qxd5 {[%clk 0:00:56]}  bxa3 {[%clk 0:01:03]} 29. Qxf7 {[%clk 0:00:40]}  a2+ {[%clk 0:01:01]} 30. Ka1 {[%clk 0:00:38]}  Rh4 {[%clk 0:00:54]} 31. g6+ {[%clk 0:00:24]}  Kh8 {[%clk 0:00:53]} 32. Rbc6 {[%clk 0:00:17]}  Rxh2 {[%clk 0:00:42]} 33. Rc8 {[%clk 0:00:16]}  Rxc8 {[%clk 0:00:41]} 34. Rxc8 {[%clk 0:00:15]}  Rh1+ {[%clk 0:00:42]} 35. Kxa2 {[%clk 0:00:15]} 1-0


[Site "https://www.chess.com"]

[Event "Titled Tuesday Blitz May 24 Late 2022"]
[White "Colivet Gamboa, Julio Cesar"]
[Black "Novikova, Galina"]
[WhiteFideId "3949583"]
[BlackFideId "4157095"]
[WhiteElo "1743"]
[BlackElo "1863"]
[Result "1-0"]
[Round "10"]
[TimeControl "180+1"]
[Date "2022.05.25"]
[WhiteClock "0:00:03"]
[BlackClock "0:00:33"]

1. c4 {[%clk 0:03:00]}  e6 {[%clk 0:02:58]} 2. Nf3 {[%clk 0:02:54]}  f5 {[%clk 0:02:59]} 3. g3 {[%clk 0:02:52]}  Nf6 {[%clk 0:02:59]} 4. Bg2 {[%clk 0:02:52]}  Be7 {[%clk 0:03:00]} 5. O-O {[%clk 0:02:53]}  O-O {[%clk 0:03:01]} 6. Nc3 {[%clk 0:02:53]}  d6 {[%clk 0:03:02]} 7. d3 {[%clk 0:02:53]}  a5 {[%clk 0:03:01]} 8. e4 {[%clk 0:02:53]}  e5 {[%clk 0:03:02]} 9. h3 {[%clk 0:02:52]}  Nc6 {[%clk 0:02:58]} 10. Be3 {[%clk 0:02:49]}  Qe8 {[%clk 0:02:55]} 11. Nd5 {[%clk 0:02:40]}  Kh8 {[%clk 0:02:53]} 12. Nxc7 {[%clk 0:02:40]}  Qh5 {[%clk 0:02:51]} 13. Nxa8 {[%clk 0:02:38]}  f4 {[%clk 0:02:52]} 14. g4 {[%clk 0:02:19]}  Nxg4 {[%clk 0:02:42]} 15. hxg4 {[%clk 0:02:16]}  Bxg4 {[%clk 0:02:43]} 16. Nc7 {[%clk 0:02:02]}  fxe3 {[%clk 0:02:41]} 17. fxe3 {[%clk 0:02:03]}  Rf6 {[%clk 0:02:16]} 18. Nd5 {[%clk 0:01:56]}  Rh6 {[%clk 0:02:15]} 19. Nxe7 {[%clk 0:01:53]}  Nxe7 {[%clk 0:02:14]} 20. Qa4 {[%clk 0:01:34]}  Rf6 {[%clk 0:02:03]} 21. Nh2 {[%clk 0:01:00]}  Be2 {[%clk 0:02:00]} 22. Rxf6 {[%clk 0:00:58]}  gxf6 {[%clk 0:02:01]} 23. d4 {[%clk 0:00:52]}  exd4 {[%clk 0:01:55]} 24. exd4 {[%clk 0:00:51]}  Nc6 {[%clk 0:01:56]} 25. d5 {[%clk 0:00:32]}  Ne5 {[%clk 0:01:52]} 26. Qxa5 {[%clk 0:00:29]}  Qg5 {[%clk 0:01:41]} 27. Qd8+ {[%clk 0:00:27]}  Kg7 {[%clk 0:01:42]} 28. Qe7+ {[%clk 0:00:27]}  Kh6 {[%clk 0:01:42]} 29. Qe6 {[%clk 0:00:22]}  Bxc4 {[%clk 0:01:32]} 30. Qh3+ {[%clk 0:00:20]}  Kg7 {[%clk 0:01:32]} 31. Nf3 {[%clk 0:00:20]}  Qe3+ {[%clk 0:01:32]} 32. Kh1 {[%clk 0:00:17]}  Ng6 {[%clk 0:01:32]} 33. Rg1 {[%clk 0:00:15]}  Bd3 {[%clk 0:01:30]} 34. Nh4 {[%clk 0:00:13]}  Qd2 {[%clk 0:01:20]} 35. Qd7+ {[%clk 0:00:09]}  Kg8 {[%clk 0:01:15]} 36. Nf5 {[%clk 0:00:09]}  Kf8 {[%clk 0:01:08]} 37. Qd8+ {[%clk 0:00:08]}  Kf7 {[%clk 0:01:08]} 38. Qd7+ {[%clk 0:00:08]}  Kf8 {[%clk 0:01:08]} 39. Qg7+ {[%clk 0:00:09]}  Ke8 {[%clk 0:01:08]} 40. Nxd6+ {[%clk 0:00:09]}  Kd8 {[%clk 0:01:07]} 41. Nxb7+ {[%clk 0:00:08]}  Kc8 {[%clk 0:01:07]} 42. Nd6+ {[%clk 0:00:08]}  Kd8 {[%clk 0:01:07]} 43. Bh3 {[%clk 0:00:07]}  Bxe4+ {[%clk 0:00:59]} 44. Nxe4 {[%clk 0:00:08]}  Qxd5 {[%clk 0:01:00]} 45. Qxf6+ {[%clk 0:00:07]}  Ke8 {[%clk 0:00:59]} 46. Qf5 {[%clk 0:00:05]}  Qa8 {[%clk 0:00:50]} 47. Qf6 {[%clk 0:00:04]}  Qxe4+ {[%clk 0:00:49]} 48. Bg2 {[%clk 0:00:05]}  Qb4 {[%clk 0:00:43]} 49. Rf1 {[%clk 0:00:05]}  Kd7 {[%clk 0:00:39]} 50. Qf7+ {[%clk 0:00:05]}  Ne7 {[%clk 0:00:39]} 51. Rd1+ {[%clk 0:00:04]}  Kc7 {[%clk 0:00:38]} 52. Qe6 {[%clk 0:00:05]}  Qh4+ {[%clk 0:00:38]} 53. Kg1 {[%clk 0:00:04]}  Qb4 {[%clk 0:00:35]} 54. Rd7+ {[%clk 0:00:04]}  Kb8 {[%clk 0:00:33]} 55. Qxe7 {[%clk 0:00:04]}  Qe1+ {[%clk 0:00:33]} 56. Qxe1 {[%clk 0:00:03]}  Kc8 {[%clk 0:00:33]} 57. Qe8# {[%clk 0:00:03]} 1-0


[Site "https://www.chess.com"]